bitfinex/quotes_ETHUSD_20240530
["timestamp","ask_amount","ask_price","bid_price","bid_amount"]
[1717085237685,2.64215,3784.8,3783.7,2.64286]
[1717085237831,0.83548036,3784.7,3783.7,2.64286]
[1717085238025,2.64228,3784.6,3783.8,35.0]
[1717085238572,2.64228,3784.6,3783.7,2.64286]
[1717085238877,2.64228,3784.6,3783.7,37.64286]
[1717085239029,2.64228,3784.6,3783.1,0.264331]
[1717085239030,3.06606475,3784.5,3783.3,2.64313]
[1717085239368,0.55,3784.4,3783.3,2.9338761]
[1717085239573,0.61606871,3784.4,3783.4,35.0]
[1717085239944,0.61606871,3784.4,3783.5,2.64305]
[1717085240471,0.61606871,3784.4,3783.5,2.7259426]
[1717085241175,0.61606871,3784.4,3783.5,5.37155023]
[1717085242760,2.6425,3784.3,3783.5,2.7259426]
[1717085242980,3.55,3784.2,3783.5,0.0828926]
[1717085243202,3.61607204,3784.2,3783.5,0.0828926]
[1717085243487,3.61607204,3784.2,3783.3,0.2907461]
[1717085243688,2.64265,3784.1,3783.6,0.08281949]
[1717085243897,2.64265,3784.1,3783.1,2.907601]
[1717085243898,0.55,3784.0,3783.1,2.64327]
[1717085244212,0.55,3784.0,3783.4,2.64311]
[1717085244496,0.55,3784.1,3783.4,2.64311]
[1717085244798,0.55,3784.3,3783.5,0.08287023]
[1717085244986,0.55,3784.3,3783.5,2.72847786]
[1717085248057,0.55,3784.3,3783.5,0.08287023]
[1717085248460,0.55,3784.3,3783.4,2.64311]
[1717085248898,0.55,3784.3,3783.5,0.08287023]
[1717085251769,0.55,3784.3,3783.4,2.64311]
[1717085252227,0.55,3784.3,3783.6,2.64291]
[1717085252386,0.55,3784.4,3783.7,0.264291]
[1717085252592,0.55,3784.4,3783.7,0.34705568]
[1717085252914,0.55,3784.4,3783.7,35.34705568]
[1717085253119,0.55,3784.4,3783.7,0.34705568]
[1717085253286,0.55,3784.4,3783.8,0.29899657]
[1717085253687,0.55,3784.4,3783.9,0.08265915]
[1717085256087,2.64231,3784.6,3783.9,0.08265915]
[1717085256275,3.55,3784.5,3783.9,0.08265915]
[1717085256713,3.55,3784.5,3783.9,2.64277]
[1717085257015,3.55,3784.5,3784.0,0.34672879]
[1717085257184,0.55,3784.5,3784.0,0.34672879]
[1717085257385,0.55,3784.8,3784.0,0.34672879]
[1717085258171,3.0,3784.8,3784.0,0.34672879]
[1717085258377,2.64207,3785.0,3784.0,0.34672879]
[1717085258378,2.6598646,3785.4,3784.0,1.80745179]
[1717085258683,0.57118041,3785.3,3784.0,1.80745179]
[1717085258893,2.6598646,3785.4,3784.0,1.80745179]
[1717085259130,2.6598646,3785.4,3784.1,35.0]
[1717085259328,2.6598646,3785.4,3784.2,2.64560763]
[1717085259481,2.6598646,3785.4,3784.2,2.72774236]
[1717085259681,0.55,3785.3,3784.2,0.08213473]
[1717085259883,3.55,3785.3,3784.4,2.64241]
[1717085260286,3.55,3785.3,3784.5,0.08197648]
[1717085260943,2.64189,3785.2,3784.5,0.08197648]
[1717085261086,3.55,3785.1,3784.5,0.08197648]
[1717085261287,3.55,3785.1,3784.4,2.64241]
[1717085261528,0.55,3785.1,3784.4,2.906651]
[1717085261840,3.55,3785.1,3784.5,0.08194598]
[1717085267155,0.55,3785.1,3784.6,2.64227]
[1717085267447,3.5680846,3785.4,3784.7,0.38063332]
[1717085267587,3.5680846,3785.4,3784.7,0.08178762]
[1717085267791,3.5680846,3785.4,3784.6,2.64227]
[1717085268185,3.5680846,3785.4,3784.7,0.08178762]
[1717085268687,3.5680846,3785.4,3784.6,2.64227]
[1717085269106,3.5680846,3785.4,3784.7,0.08178762]
[1717085269508,3.5680846,3785.4,3784.6,2.64227]
[1717085269706,3.56683166,3785.4,3784.6,2.64227]
[1717085270021,3.56683166,3785.4,3784.7,0.08176083]
[1717085270206,3.56683166,3785.4,3784.6,2.64227]
[1717085270406,3.56683166,3785.4,3784.8,0.08170809]
[1717085270607,3.56683166,3785.4,3784.6,2.64227]
[1717085271128,3.56683166,3785.4,3784.7,0.08176083]
[1717085271530,3.56683166,3785.4,3784.6,2.64227]
[1717085271891,3.56683166,3785.4,3784.7,0.08176083]
[1717085272318,3.56683166,3785.4,3784.6,2.64227]
[1717085272830,3.56683166,3785.4,3784.7,0.08176083]
[1717085272991,3.56683166,3785.4,3784.6,2.64227]
[1717085273531,3.56683166,3785.4,3784.7,0.08176083]
[1717085273901,3.56683166,3785.4,3784.6,2.64227]
[1717085274252,3.56683166,3785.4,3784.7,0.08176083]
[1717085274593,3.56683166,3785.4,3784.6,2.64227]
[1717085274793,3.56683166,3785.4,3784.8,0.08170809]
[1717085275132,3.56683166,3785.4,3784.6,2.64227]
[1717085275434,3.56683166,3785.4,3784.7,0.08176083]
[1717085275926,3.56683166,3785.4,3784.6,2.64227]
[1717085276227,3.56683166,3785.4,3784.7,0.08176083]
[1717085276791,3.56683166,3785.4,3784.6,3.35927]
[1717085276958,3.56683166,3785.4,3784.8,0.08170809]
[1717085277297,3.56683166,3785.4,3784.6,3.35927]
[1717085277922,3.56683166,3785.4,3784.7,0.0817039]
[1717085280108,0.56683166,3785.4,3784.7,0.0817039]
[1717085281441,1.13796535,3785.4,3784.8,3.35913]
[1717085281643,0.56683166,3785.4,3784.8,3.44073236]
[1717085282910,0.56683166,3785.4,3784.8,2.72373236]
[1717085283103,0.95938083,3785.4,3784.8,2.72373236]
[1717085284363,0.56683166,3785.4,3784.8,2.72373236]
[1717085284561,0.01683166,3785.4,3784.8,2.64213]
[1717085284922,0.01683166,3785.4,3784.9,0.08154962]
[1717085289354,0.56683166,3785.4,3784.9,0.08154962]
[1717085289549,0.01683166,3785.4,3784.9,0.08154962]
[1717085289757,0.01683166,3785.4,3785.0,2.64199]
[1717085290128,0.01683166,3785.4,3785.1,0.08144416]
[1717085290427,0.20232405,3785.4,3784.7,2.64219]
[1717085290623,0.55,3785.3,3785.2,0.08139143]
[1717085290817,0.55,3785.3,3784.7,2.64219]
[1717085291061,0.55,3785.3,3785.2,0.08139143]
[1717085291267,0.55,3785.3,3784.7,2.64219]
[1717085291773,0.56683166,3785.4,3784.7,2.64219]
[1717085292012,1.25937883,3785.4,3784.7,2.64219]
[1717085294423,0.56683166,3785.4,3784.7,2.64219]
[1717085294717,0.01683166,3785.4,3784.9,2.64207]
[1717085295058,0.01683166,3785.4,3785.0,0.08140336]
[1717085295742,0.01683166,3785.4,3785.1,2.64192]
[1717085296000,0.01683166,3785.4,3785.2,0.0812979]
[1717085296766,0.01683166,3785.4,3784.8,0.717]
[1717085296968,0.01683166,3785.4,3784.9,0.08145609]
[1717085297694,0.01683166,3785.4,3785.0,2.64199]
[1717085297877,0.01683166,3785.4,3785.0,3.44039336]
[1717085298400,0.01683166,3785.4,3785.2,0.717]
[1717085298612,0.01683166,3785.4,3785.1,0.08135063]
[1717085298774,0.01683166,3785.4,3785.1,0.30593094]
[1717085299104,0.01683166,3785.4,3785.2,0.0812979]
[1717085299299,0.01683166,3785.4,3785.2,0.7982979]
[1717085302019,0.01683166,3785.4,3785.2,0.0812979]
[1717085302166,0.01683166,3785.4,3785.3,0.30292188]
[1717085302369,0.01683166,3785.4,3785.3,0.38416705]
[1717085303479,0.01683166,3785.4,3785.3,3.02595705]
[1717085309826,0.01683166,3785.4,3785.3,3.74295705]
[1717085311936,0.01683166,3785.4,3785.3,3.02595705]
[1717085314689,0.01683166,3785.4,3785.3,3.74295705]
[1717085315499,1e-08,3785.4,3785.3,6.38474705]
[1717085315705,0.57094585,3787.2,3785.3,7.10195061]
[1717085316038,2.63959,3788.5,3787.1,3.35748]
[1717085316221,0.57074446,3788.4,3787.4,0.717]
[1717085316433,0.717,3788.4,3787.4,0.717]
[1717085316612,0.717,3788.4,3787.4,0.79676666]
[1717085317156,0.717,3788.3,3787.4,0.07976666]
[1717085317451,0.717,3787.8,3787.1,2.64048]
[1717085317599,0.57073448,3788.4,3787.4,0.07951887]
[1717085317801,0.57073448,3788.4,3787.1,2.64048]
[1717085317997,0.717,3787.8,3787.2,0.07962421]
[1717085318732,0.55,3787.7,3787.2,0.07962421]
[1717085319932,0.717,3787.6,3787.2,0.07962421]
[1717085320096,0.55,3787.7,3787.2,0.07962421]
[1717085320097,0.717,3787.3,3787.2,0.07962421]
[1717085320295,0.717,3787.3,3786.7,2.6408]
[1717085320540,0.717,3787.3,3786.3,2.64107]
[1717085320541,0.717,3786.8,3786.3,2.64107]
[1717085320899,0.55,3786.7,3786.3,2.64107]
[1717085321805,0.55,3786.7,3785.9,2.64135]
[1717085322006,0.55,3786.7,3786.0,0.997135]
[1717085322279,0.55,3786.7,3786.1,2.64124]
[1717085324645,0.55,3786.7,3786.4,2.64098]
[1717085324952,2.64044,3787.3,3786.4,2.64098]
[1717085325164,0.55,3787.2,3786.4,2.64098]
[1717085326441,0.55,3787.2,3786.4,2.905078]
[1717085328088,0.57952589,3787.5,3786.4,2.905078]
[1717085329191,0.57952589,3787.5,3786.7,2.64079]
[1717085329372,0.02952589,3787.5,3786.7,2.64079]
[1717085329966,0.02952589,3787.5,3786.9,2.64063]
[1717085330166,0.02952589,3787.5,3787.0,0.07708735]
[1717085333517,0.02952589,3787.5,3786.5,9.97093]
[1717085333984,2.66981589,3787.5,3786.5,44.97093]
[1717085334181,0.55,3787.4,3786.6,0.07727778]
[1717085334383,1.09888159,3787.4,3786.6,0.07727778]
[1717085336498,0.55,3787.4,3786.7,2.64081]
[1717085336831,0.55,3787.4,3786.7,2.71803509]
[1717085337039,0.55,3787.4,3786.8,35.0]
[1717085337201,0.55,3787.4,3786.8,35.07710742]
[1717085337434,0.02952589,3787.5,3786.8,35.07710742]
[1717085337762,0.02952589,3787.5,3786.8,0.07710742]
[1717085338127,0.39407963,3787.5,3786.8,0.07710742]
[1717085338343,0.55,3787.4,3786.8,0.07710742]
[1717085338748,0.55,3787.4,3786.5,42.33]
[1717085339359,0.55,3787.4,3786.6,0.07723106]
[1717085340144,2.6404,3787.3,3786.6,0.07723106]
[1717085340466,0.55,3787.2,3786.6,0.07723106]
[1717085340923,2.64058,3787.1,3786.6,0.07723106]
[1717085341129,2.64058,3787.1,3786.5,7.33]
[1717085341330,0.55,3787.0,3786.7,0.07717838]
[1717085341640,0.55,3787.0,3786.8,0.07712569]
[1717085341845,0.55,3787.0,3786.5,7.33]
[1717085342050,2.64069,3786.9,3786.5,7.33]
[1717085342272,0.55,3786.8,3786.5,7.33]
[1717085342727,2.64082,3786.7,3786.0,35.0]
[1717085342929,0.55,3786.6,3785.9,9.97131]
[1717085344670,0.55,3786.6,3786.0,0.07754724]
[1717085346569,2.64098,3786.5,3786.0,0.07754724]
[1717085346743,0.55,3786.4,3786.0,0.07754724]
[1717085347275,0.55,3786.4,3785.7,35.0]
[1717085347599,0.55,3786.4,3786.1,0.07749454]
[1717085347772,0.869098,3786.4,3785.7,35.0]
[1717085347940,0.869098,3786.4,3786.2,0.07767544]
[1717085348148,2.6411,3786.3,3785.7,35.0]
[1717085348346,0.55,3786.2,3785.7,35.0]
[1717085350668,2.64125,3786.1,3785.7,35.0]
[1717085350868,0.55,3786.0,3785.6,12.18]
[1717085351203,0.55,3786.0,3785.1,9.97189]
[1717085351400,0.55,3786.0,3785.2,35.0]
[1717085351848,2.64138,3785.9,3785.2,35.0]
[1717085352048,0.55,3785.8,3785.2,35.0]
[1717085353797,1.719,3785.7,3785.1,7.33]
[1717085354002,0.55,3785.6,3785.1,7.33]
[1717085354318,2.64168,3785.5,3785.1,7.33]
[1717085355151,4.36082,3785.3,3784.5,7.33]
[1717085355350,2.64197,3785.1,3784.5,7.33]
[1717085355774,0.55,3785.0,3784.5,7.33]
[1717085357265,2.64165,3785.6,3784.5,9.97234]
[1717085357485,2.6408,3786.8,3784.7,2.64218]
[1717085357486,2.64134,3786.0,3784.7,2.64218]
[1717085357686,2.64134,3786.0,3784.9,2.642]
[1717085357902,2.64134,3786.0,3784.6,0.997234]
[1717085358101,2.64154,3785.7,3784.6,0.997234]
[1717085358292,2.64154,3785.7,3784.7,1.0969574]
[1717085358487,0.06604834,3785.6,3784.8,35.0]
[1717085358703,2.64154,3785.7,3784.8,35.0]
[1717085358910,0.55,3785.6,3784.8,35.0]
[1717085359089,0.55,3785.6,3784.7,1.0969574]
[1717085359428,2.70772824,3785.5,3784.7,1.0969574]
[1717085359589,2.64168,3785.5,3784.5,7.33]
[1717085359916,2.6418,3785.3,3784.5,7.33]
[1717085360126,0.61605544,3785.2,3784.6,0.07907784]
[1717085360436,2.64195,3785.1,3784.6,0.07907784]
[1717085360585,0.61605968,3785.0,3784.6,0.07907784]
[1717085360789,0.55,3785.0,3784.5,7.33]
[1717085360987,0.55,3785.0,3784.7,0.0790251]
[1717085361217,0.55,3785.0,3784.5,7.33]
[1717085361218,0.55,3785.0,3784.6,0.07907784]
[1717085361538,3.0,3785.7,3784.6,0.07907784]
[1717085361539,2.64167,3785.5,3784.7,0.0790251]
[1717085361712,0.55,3785.4,3784.7,0.0790251]
[1717085362024,3.55,3785.4,3784.7,0.0790251]
[1717085363404,3.55,3785.4,3784.8,35.0]
[1717085363613,2.64138,3785.9,3784.8,35.0]
[1717085363801,2.64138,3785.9,3784.9,2.72452725]
[1717085364003,2.64138,3785.9,3785.0,2.64199]
[1717085364446,3.0,3786.2,3785.1,0.07881415]
[1717085364447,2.64186,3785.2,3785.1,0.07881415]
[1717085364733,2.64186,3785.2,3784.5,7.33]
[1717085364734,2.64225,3784.7,3784.5,7.33]
[1717085364898,2.64225,3784.7,3783.6,9.97296]
[1717085365085,2.64236,3784.5,3783.6,7.33]
[1717085365288,3.06606201,3784.6,3783.6,7.33]
[1717085365289,4.36155,3784.3,3783.6,7.33]
[1717085365629,0.6160714,3784.2,3783.6,7.33]
[1717085365792,0.55,3784.2,3783.6,7.33]
[1717085366229,0.55,3784.2,3783.6,8.063]
[1717085366530,3.0,3784.6,3783.7,0.05285598]
[1717085366731,3.0,3785.0,3783.6,8.063]
[1717085366930,1.719,3785.4,3783.6,8.063]
[1717085367112,1.719,3785.4,3783.8,35.0]
[1717085367440,0.1719,3785.3,3783.9,2.64560763]
[1717085367647,2.64218,3784.8,3783.8,35.0]
[1717085367833,3.0,3784.7,3783.8,35.0]
[1717085367996,2.64231,3784.6,3783.8,35.0]
[1717085368201,0.55,3784.5,3783.8,35.0]
[1717085370036,2.64244,3784.4,3783.8,35.0]
[1717085370238,0.55,3784.3,3783.8,35.0]
[1717085370715,0.55,3784.3,3783.6,8.063]
[1717085371429,0.55,3784.3,3783.7,35.0]
[1717085372305,2.64257,3784.2,3783.7,35.0]
[1717085372523,0.55,3784.1,3783.7,35.0]
[1717085372731,0.55,3784.1,3783.6,7.33]
[1717085373813,2.64271,3784.0,3783.6,7.33]
[1717085374032,0.55,3783.9,3783.6,7.33]
[1717085374339,0.55,3783.9,3783.0,9.97335]
[1717085374546,0.55,3783.9,3783.1,0.997335]
[1717085374729,0.55,3783.9,3783.2,0.07765178]
[1717085374939,2.64285,3783.8,3783.2,0.07765178]
[1717085375140,0.55,3783.7,3783.2,0.07765178]
[1717085380064,2.64206,3785.0,3783.9,2.64275]
[1717085380266,2.64206,3785.0,3784.2,2.64254]
[1717085380754,2.64206,3785.0,3784.3,0.07720558]
[1717085381067,2.64206,3785.0,3783.8,2.6428]
[1717085381248,2.64206,3785.0,3784.4,0.07715283]
[1717085381456,2.64216,3784.8,3783.8,2.6428]
[1717085381617,0.55,3784.7,3784.5,0.07710008]
[1717085381962,0.55,3784.7,3783.8,2.6428]
[1717085382273,0.55,3784.7,3783.9,0.07741661]
[1717085382979,2.64229,3784.6,3783.9,0.07741661]
[1717085383174,0.869229,3784.5,3783.9,0.07741661]
[1717085383382,0.55,3784.5,3783.7,9.9729]
[1717085383577,0.55,3784.5,3784.0,0.077313]
[1717085383780,0.55,3784.5,3783.7,9.9729]
[1717085384078,0.55,3784.8,3784.1,0.07726024]
[1717085384238,0.55,3784.8,3784.0,2.6427]
[1717085384578,0.55,3784.8,3784.1,0.07727447]
[1717085388046,1.169206,3784.8,3784.1,0.07727447]
[1717085389392,0.55,3784.8,3784.1,0.07727447]
[1717085392559,0.55,3784.8,3784.2,2.64252]
[1717085392760,0.55,3784.8,3784.3,0.07700422]
[1717085392959,0.55,3784.9,3784.2,2.64252]
[1717085393227,0.55,3784.9,3784.3,0.07700422]
[1717085393407,0.55,3784.9,3784.4,0.27195242]
[1717085393706,0.55,3784.9,3784.4,2.91430242]
[1717085393915,0.55,3784.9,3784.5,0.07689872]
[1717085394271,0.55,3784.9,3784.4,2.91430242]
[1717085394503,0.55,3784.9,3784.6,0.07684597]
[1717085394691,0.55,3784.9,3784.5,0.07689872]
[1717085394903,0.55,3784.9,3784.7,0.07679323]
[1717085395216,0.55,3784.9,3784.8,0.07674049]
[1717085395574,0.55,3784.9,3784.5,0.29912011]
[1717085395774,0.55,3784.9,3784.6,0.07684597]
[1717085396030,0.55,3784.9,3784.4,2.64235]
[1717085396191,0.55,3785.0,3784.7,0.07679323]
[1717085396720,0.55,3785.0,3784.8,0.07674049]
[1717085397080,0.55,3785.0,3784.1,7.33]
[1717085397423,0.55,3785.0,3784.2,1.07431997]
[1717085398830,0.55,3785.0,3784.2,0.07705697]
[1717085400620,1.721,3785.4,3784.2,0.07705697]
[1717085400621,1.12119105,3785.3,3784.2,0.07705697]
[1717085400830,3.55,3785.3,3784.2,0.07705697]
[1717085401027,1.32213922,3785.2,3784.2,0.07705697]
[1717085401322,1.721,3785.0,3784.2,0.07705697]
[1717085401525,0.55,3784.9,3784.2,0.07705697]
[1717085401887,2.64241,3784.5,3784.2,0.07705697]
[1717085402185,0.55,3784.4,3784.2,0.07705697]
[1717085403685,2.64234,3784.6,3784.2,0.07705697]
[1717085404019,0.55,3784.5,3784.2,0.07705697]
[1717085406098,0.55,3784.5,3783.6,9.97297]
[1717085406510,0.55,3784.5,3783.7,0.07732078]
[1717085411297,0.55,3784.5,3783.8,2.64284]
[1717085411726,0.55,3784.5,3783.9,0.07382291]
[1717085414802,0.55,3784.5,3784.0,2.64266]
[1717085415002,0.55,3784.6,3784.0,2.64266]
[1717085415377,0.55,3784.8,3784.1,0.07368892]
[1717085415497,0.55,3784.8,3784.1,0.44579044]
[1717085416112,0.55,3784.8,3784.2,2.64254]
[1717085416315,2.64179,3785.4,3784.4,2.64235]
[1717085416512,2.64152,3785.7,3784.6,2.64221]
[1717085416905,2.64152,3785.7,3784.7,0.07338666]
[1717085417604,3.0,3785.6,3784.8,2.64213]
[1717085417955,3.0,3785.6,3784.9,0.07328119]
[1717085418335,0.55,3785.5,3784.9,0.07328119]
[1717085418922,2.64125,3786.1,3785.0,2.64193]
[1717085419121,2.64148,3785.8,3785.1,0.07317572]
[1717085419406,2.64148,3785.8,3784.9,2.64205]
[1717085419611,2.64148,3785.8,3785.2,0.07312299]
[1717085419835,0.564148,3785.7,3784.9,2.64205]
[1717085420079,0.564148,3785.7,3785.3,0.07307027]
[1717085420235,0.55,3785.6,3784.9,2.64205]
[1717085420440,0.55,3785.6,3785.4,0.07301754]
[1717085420637,0.55,3785.6,3784.9,2.64205]
[1717085420638,0.55,3785.7,3784.9,2.64205]
[1717085420851,0.319148,3785.6,3785.5,0.07296482]
[1717085421045,0.869148,3785.6,3784.9,2.64205]
[1717085421228,0.319148,3785.6,3785.5,0.07296482]
[1717085421426,0.869148,3785.6,3784.9,2.64205]
[1717085421633,0.55,3785.5,3784.9,2.64205]
[1717085423540,0.55,3785.7,3784.9,2.64205]
[1717085423949,1.169148,3785.7,3784.9,2.64205]
[1717085424628,2.64159,3785.6,3784.7,7.33]
[1717085424876,0.55,3785.5,3784.7,7.33]
[1717085425198,0.55,3785.5,3784.8,2.64214]
[1717085426572,2.64175,3785.4,3784.7,7.33]
[1717085426770,0.55,3785.3,3784.7,7.33]
[1717085427615,2.64189,3785.2,3784.2,7.33]
[1717085427721,2.64203,3785.0,3784.2,7.33]
[1717085427922,0.55,3784.9,3784.2,7.33]
[1717085429473,2.6422,3784.8,3784.2,7.33]
[1717085429645,0.55,3784.7,3784.2,7.33]
[1717085430046,0.55,3784.7,3784.3,0.07346751]
[1717085430505,0.55,3784.7,3784.2,7.33]
[1717085430638,0.55,3784.7,3784.4,0.07341476]
[1717085430833,0.55,3784.7,3784.3,0.07346751]
[1717085431176,0.55,3784.7,3784.5,0.07340269]
[1717085431480,0.55,3784.7,3784.6,0.07334994]
[1717085431687,0.55,3784.7,3784.6,0.10086623]
[1717085431842,3.0,3785.4,3784.3,2.64247]
[1717085432044,3.0,3785.5,3784.6,0.100852]
[1717085432382,0.41383506,3786.3,3784.7,0.10079853]
[1717085432383,2.64173,3785.4,3784.7,0.10079853]
[1717085432534,2.64173,3785.4,3784.3,2.64247]
[1717085432729,2.64173,3785.4,3784.4,0.10095895]
[1717085432936,2.905903,3785.4,3784.4,0.10095895]
[1717085433239,0.55,3785.3,3784.4,0.10095895]
[1717085434289,2.64173,3785.4,3784.6,2.64227]
[1717085434628,2.64173,3785.4,3784.7,0.10079853]
[1717085435651,0.55,3785.3,3784.7,0.10079853]
[1717085438475,0.55,3785.3,3784.7,0.37510538]
[1717085442150,0.55,3785.3,3784.8,2.64214]
[1717085442352,0.55,3785.3,3784.9,0.10070787]
[1717085442585,2.64166,3785.5,3784.9,0.10070787]
[1717085442778,0.55,3785.4,3784.8,2.64214]
[1717085443095,0.55,3785.4,3784.9,0.10070787]
[1717085443444,0.55,3785.4,3784.8,2.64214]
[1717085443785,0.55,3785.4,3784.9,0.10070787]
[1717085444087,0.55,3785.4,3784.8,2.64214]
[1717085444383,0.55,3785.4,3784.9,0.10070787]
[1717085444687,0.55,3785.4,3784.8,2.64214]
[1717085444984,0.55,3785.4,3784.9,0.10070787]
[1717085445181,0.55,3785.4,3784.8,2.64214]
[1717085445385,0.55,3785.4,3784.9,0.10070787]
[1717085445582,0.55,3785.4,3784.8,2.64214]
[1717085445773,0.55,3785.4,3784.9,0.10070787]
[1717085446089,0.55,3785.4,3784.8,2.64214]
[1717085446390,0.55,3785.4,3784.9,0.10070787]
[1717085446602,0.55,3785.4,3784.8,2.64214]
[1717085446803,0.55,3785.4,3784.9,0.10070787]
[1717085447106,0.55,3785.4,3784.6,2.64223]
[1717085447572,0.55,3785.4,3784.7,0.1008148]
[1717085452605,1.267,3785.4,3784.7,0.1008148]
[1717085454771,1.267,3785.4,3784.8,2.64214]
[1717085454980,1.267,3785.4,3784.9,0.10070787]
[1717085461512,0.55,3785.4,3784.9,0.10070787]
[1717085463024,0.5710822,3785.6,3784.9,0.37499266]
[1717085463182,0.5710822,3786.2,3785.6,2.64153]
[1717085463382,0.717,3786.3,3785.7,0.10022942]
[1717085463623,0.717,3785.9,3785.2,9.9718]
[1717085463928,0.717,3785.9,3785.3,0.1004432]
[1717085464812,0.55,3785.8,3785.3,0.1004432]
[1717085465123,0.55,3785.8,3785.2,9.9718]
[1717085465328,0.55,3785.8,3785.4,0.10038975]
[1717085465538,0.55,3785.8,3785.3,0.1004432]
[1717085465822,0.55,3785.8,3785.4,0.10038975]
[1717085466023,0.55,3785.8,3785.2,9.9718]
[1717085466231,0.55,3785.8,3785.3,0.1004432]
[1717085466390,0.55,3785.9,3785.3,0.1004432]
[1717085467428,0.55,3785.9,3785.4,2.64172]
[1717085467631,0.57100982,3786.2,3785.5,0.10033631]
[1717085467789,2.64125,3786.1,3785.5,0.10033631]
[1717085468686,0.717,3786.0,3785.2,42.33]
[1717085468913,0.55,3785.9,3785.6,0.1001934]
[1717085469117,0.55,3786.0,3785.3,2.64176]
[1717085469317,0.55,3786.0,3785.7,0.10013996]
[1717085469524,0.55,3786.0,3785.3,5.28736763]
[1717085469721,0.55,3786.1,3785.8,0.10008652]
[1717085469889,0.57100157,3786.4,3785.6,0.717]
[1717085470093,3.35802,3786.5,3785.5,2.64159]
[1717085470094,0.717,3786.3,3785.9,0.10003308]
[1717085470352,0.717,3786.3,3785.5,2.64159]
[1717085470645,0.717,3786.1,3785.5,2.64159]
[1717085470811,0.717,3786.1,3785.6,0.1001934]
[1717085471698,0.55,3786.0,3785.6,0.1001934]
[1717085471912,0.55,3786.0,3785.3,2.64177]
[1717085472142,0.55,3786.0,3785.7,0.10013996]
[1717085472439,0.55,3786.0,3785.8,0.10008652]
[1717085472594,0.55,3786.0,3785.3,2.64177]
[1717085472940,0.55,3786.0,3785.4,2.74590792]
[1717085475395,0.55,3786.0,3785.4,0.10030029]
[1717085477020,3.35816,3786.3,3785.4,0.10030029]
[1717085477021,0.55,3786.2,3785.4,0.10030029]
[1717085477554,0.55,3786.2,3785.5,2.64164]
[1717085477949,0.55,3786.2,3785.6,0.1001934]
[1717085478506,1.267,3786.2,3785.6,0.1001934]
[1717085481729,0.55,3786.2,3785.6,0.1001934]
[1717085481926,1.267,3786.2,3785.6,0.1001934]
[1717085482142,1.267,3786.2,3785.4,2.6417]
[1717085482312,1.267,3786.2,3785.7,0.10009932]
[1717085482666,1.267,3786.2,3785.8,0.10004588]
[1717085483157,1.267,3786.2,3785.4,2.6417]
[1717085483370,1.267,3786.2,3785.9,0.09999245]
[1717085483576,0.55,3786.2,3785.6,2.64152]
[1717085483711,0.57099931,3786.5,3786.1,2.64123]
[1717085483910,2.64062,3787.0,3786.1,2.64123]
[1717085484110,2.64062,3787.0,3786.2,0.09983216]
[1717085484111,3.35762,3787.0,3786.2,0.09983216]
[1717085484354,2.64062,3787.0,3786.2,0.09983216]
[1717085484850,0.717,3786.9,3786.2,0.09983216]
[1717085485370,0.55,3786.8,3786.2,0.09983216]
[1717085487331,0.717,3786.7,3786.2,0.09983216]
[1717085487513,0.717,3786.4,3786.2,0.09983216]
[1717085487720,0.717,3786.4,3785.8,7.33]
[1717085488020,0.55,3786.3,3785.9,0.997145]
[1717085488352,0.55,3786.5,3785.9,0.997145]
[1717085489253,0.55,3786.5,3785.8,7.33]
[1717085489497,0.717,3786.4,3785.8,7.33]
[1717085489673,0.55,3786.3,3785.8,7.33]
[1717085490484,0.717,3785.9,3785.8,7.33]
[1717085490802,0.717,3785.9,3785.1,9.97193]
[1717085490974,0.717,3785.9,3785.1,12.187123]
[1717085490975,0.717,3785.7,3785.1,12.187123]
[1717085491503,0.55,3785.6,3785.1,12.187123]
[1717085492099,0.717,3785.9,3785.1,12.187123]
[1717085492100,1.267,3785.9,3785.1,12.187123]
[1717085492261,1.267,3785.9,3785.2,1.2904123]
[1717085492663,2.64145,3785.8,3785.1,9.545193]
[1717085492899,0.55,3785.7,3785.1,9.545193]
[1717085494499,1.267,3785.7,3785.1,9.545193]
[1717085494859,1.267,3785.7,3785.2,0.0967376]
[1717085495290,0.55,3785.7,3785.2,0.0967376]
[1717085495485,0.55,3785.7,3785.2,1.32513066]
[1717085496707,0.55,3785.7,3785.2,0.0967376]
[1717085497480,0.717,3785.5,3785.2,0.0967376]
[1717085498009,1.267,3785.7,3784.8,12.18]
[1717085498192,1.267,3785.7,3784.7,9.97221]
[1717085498193,1.267,3785.7,3785.3,0.09668415]
[1717085498390,1.267,3785.7,3784.7,10.68921]
[1717085498593,2.64158,3785.6,3785.4,0.0966307]
[1717085498908,1.267,3785.5,3784.8,0.09695144]
[1717085499114,0.55,3785.5,3784.7,9.97221]
[1717085499274,1.267,3785.5,3784.9,0.09689797]
[1717085499471,1.267,3785.5,3784.8,0.09695144]
[1717085499669,2.64174,3785.4,3785.0,0.09684451]
[1717085499991,0.55,3785.3,3784.7,7.33]
[1717085500171,0.55,3785.3,3785.1,0.09679106]
[1717085500368,0.55,3785.3,3784.7,7.33]
[1717085500680,0.717,3785.1,3784.7,7.33]
[1717085500898,0.717,3785.1,3784.8,0.09695144]
[1717085500899,0.55,3785.0,3784.8,0.09695144]
[1717085501070,3.35907,3784.9,3784.8,0.09695144]
[1717085501272,3.90907,3784.9,3784.8,0.09695144]